Cogmind - Beta 11 X4 @@@ ROGUE MODE // 2021.05.14 @ 01:18:31 Player: JackNine Result: Destroyed by B-99 Colossus with Multirail Performance ------------- Evolutions (9) 4500 Regions Visited (22) 4400 Robots Destroyed (244) 1220 Value Destroyed (9292) 9292 Prototype IDs (39) 780 Alien Tech Used (5) 1000 Bonus (4416) 4416 TOTAL SCORE: 25608 Bonus ------- High Alert Combat Kills 296 Follower Combat Kills 1274 Met Data Miner 300 Used Core Reset Matrix 3000 Friendly Fire -454 Cogmind --------- Core Integrity 0/1600 Matter 112/300 Energy 100/100 System Corruption 10% Temperature Cool (0) Movement Core (50) Location -1/Access Parts ------- > --- POWER (2) -------- (None) > --- PROPULSION (9) --- (None) > --- UTILITY (11) ----- Experimental Optical Array Advanced Terrain Scan Processor > --- WEAPON (3) ------- (None) > --- INVENTORY (5) ---- Improved Stasis Canceller Advanced Remote Datajack Peak State ------------ > --- POWER ------------ Light Quantum Reactor Improved Quantum Reactor > --- PROPULSION ------- Cooled Nuclear Pulse Thruster Nuclear Pulse Array Impulse Thruster Q-thruster Q-thruster Q-thruster Experimental Q-thruster > --- UTILITY ---------- Advanced Cryofiber Web Medium Storage Unit Machine Analyzer Experimental Optical Array Advanced Sensor Array Advanced Signal Interpreter Advanced Terrain Scan Processor Advanced Melee Analysis Suite Layered Medium Armor Plating System Shield > --- WEAPON ----------- Core Cannon Kinetic Spear > --- INVENTORY -------- Microactuators Advanced ECM Suite Dimensional Node Initializer Dimensional Node Initializer Transdimensional Reconstructor High-powered Transdimensional Reconstructor High-powered Transdimensional Reconstructor Subatomic Replicator Enhanced Nova Cannon Heavy Shock Bomb Launcher [Rating: 170] Favorites ----------- Power Improved Deuterium Engine Engine Improved Deuterium Engine Power Core Neutrino Core Reactor Light Quantum Reactor Propulsion Flexi-carbon Leg Treads Light Treads Leg Flexi-carbon Leg Wheel Wheel Hover Unit Improved Gyrokinetic Inverter Flight Unit Q-thruster Utility Huge Storage Unit Device Improved Heat Sink Storage Huge Storage Unit Processor Advanced Terrain Scan Processor Hackware System Shield Protection Heavy Armor Plating Weapon Assault Cannon Energy Gun EM Pulse Gun Energy Cannon Long-range Proton Cannon Ballistic Gun Enhanced Autogun Ballistic Cannon Assault Cannon Launcher Long-range Missile Launcher Impact Weapon Thunder Hammer Slashing Weapon Phasing Sabre Piercing Weapon Kinetic Spear Build | -11 -10 -10 -9 -9 -8 -7 -7 -7 -7 -6 -6 -6 -6 -6 -5 -5 -4 -4 -3 -2 -2 -1 ------- Run | Scr Mat Min Mat Min Mat Fac Low Low Dat Pro Fac Low Low Zio Pro Fac Fac Ext Res Res Qua Acc Slots Evolved 18 | . . . 2 . 2 2 . . . . 2 . . . . 2 2 . 2 2 . 2 Power 1 | . . . . . . . . . . . . . . . . . 1 . . . . . Propulsion 7 | . . . 1 . 1 . . . . . 1 . . . . 1 . . 1 1 . 1 Utility 9 | . . . 1 . 1 1 . . . . 1 . . . . 1 1 . 1 1 . 1 Weapon 1 | . . . . . . 1 . . . . . . . . . . . . . . . . Parts Attached 456 | 6 15 7 26 17 32 17 5 4 . 4 50 12 11 6 24 23 14 38 59 20 34 32 Power 38 | 1 . 1 3 1 3 2 1 . . . 6 1 . . 1 1 2 3 3 3 5 1 Engine 16 | 1 . 1 3 1 1 2 1 . . . 2 . . . . 1 1 . 2 . . . Core 7 | . . . . . 2 . . . . . 1 1 . . . . 1 2 . . . . Reactor 15 | . . . . . . . . . . . 3 . . . 1 . . 1 1 3 5 1 Propulsion 130 | 2 7 2 12 5 9 5 2 . . . 10 2 1 . 6 4 5 12 12 7 10 17 Treads 39 | . 3 1 6 2 5 2 1 . . . 5 . . . . . . 2 1 1 . 10 Leg 23 | . . . . . . . . . . . . . 1 . 3 1 1 10 7 . . . Wheel 39 | 2 4 1 6 3 4 3 1 . . . 5 2 . . 3 1 . . 4 . . . Hover 15 | . . . . . . . . . . . . . . . . 2 1 . . . 5 7 Flight 14 | . . . . . . . . . . . . . . . . . 3 . . 6 5 . Utility 119 | 1 4 2 3 1 8 6 . . . . 12 4 2 1 3 5 3 13 19 9 15 8 Device 65 | . 2 2 . 1 5 3 . . . . 6 2 2 1 2 2 1 8 10 5 9 4 Storage 9 | 1 1 . . . . . . . . . 1 1 . . . . . 1 . . 2 2 Processor 13 | . . . . . 1 . . . . . . . . . 1 1 2 1 3 1 3 . Hackware 4 | . . . . . . . . . . . . . . . . 2 . . . . 1 1 Protection 28 | . 1 . 3 . 2 3 . . . . 5 1 . . . . . 3 6 3 . 1 Artifact . | . . . . . . . . . . . . . . . . . . . . . . . Weapon 169 | 2 4 2 8 10 12 4 2 4 . 4 22 5 8 5 14 13 4 10 25 1 4 6 Energy Gun 39 | 1 4 2 5 4 3 . . . . . 5 3 2 . . 1 . . 4 . 2 3 Energy Cannon 20 | . . . . . . . . . . . 2 . 3 . 3 1 1 4 2 . 1 3 Ballistic Gun 35 | 1 . . 3 3 7 1 1 2 . 2 4 . . 2 1 . . 2 6 . . . Ballistic Cannon 19 | . . . . . 1 2 . . . . 5 . . 2 2 . . 3 4 . . . Launcher 25 | . . . . 2 1 . . 2 . 2 3 1 2 . 7 1 2 . 2 . . . Special Weapon . | . . . . . . . . . . . . . . . . . . . . . . . Impact Weapon 18 | . . . . . . . . . . . 3 1 1 1 1 10 1 . . . . . Slashing Weapon 11 | . . . . 1 . 1 1 . . . . . . . . . . 1 7 . . . Piercing Weapon 2 | . . . . . . . . . . . . . . . . . . . . 1 1 . Special Melee Weapon . | . . . . . . . . . . . . . . . . . . . . . . . Unidentified Prototypes 24 | . . 1 . . 2 . . . . . 8 . . . . 1 . . 4 4 3 1 Corrupted Parts 7 | . . . . . . . . . . . . . 1 2 . . . 1 2 . . 1 System Corruption 33 | . . . . . . . . . . . . . 9 7 . . . 1 12 . . 4 Parts Lost 201 | . 5 1 12 12 12 6 1 . . . 26 5 8 1 8 7 12 5 35 7 15 23 Power 18 | . . . 1 1 2 . . . . . 2 . . . 1 . 2 . 5 2 . 2 Propulsion 81 | . 1 . 5 4 5 4 1 . . . 8 3 2 . 2 4 4 5 13 3 9 8 Utility 49 | . 1 . 1 2 1 2 . . . . 8 2 2 1 4 1 2 . 9 1 5 7 Weapon 53 | . 3 1 5 5 4 . . . . . 8 . 4 . 1 2 4 . 8 1 1 6 Highest Loss Streak 17 | . 3 1 4 12 12 3 1 . . . 15 3 3 1 2 2 7 4 10 4 8 17 Average Slot Usage (%) 81 | . 93 100 98 88 94 89 92 92 92 92 88 81 77 66 54 20 35 90 82 54 63 45 Engine 4 | . 14 14 11 10 4 6 7 7 7 7 3 . . . . . . . 1 . . . Core 2 | . . . . . 4 . . . . . 1 6 6 6 3 . 2 9 1 . . . Treads 5 | . . 12 11 4 15 15 15 15 15 15 13 . . . . . . . 1 1 . 2 Leg 6 | . . . . . . . . . . . . . 5 6 8 1 2 28 24 . . . Wheel 10 | . 27 15 20 26 19 13 15 15 15 15 12 19 8 6 2 . . . 2 2 . . Device 10 | . . 14 11 10 12 7 7 7 7 7 9 17 20 24 14 1 3 7 13 10 5 4 Storage 7 | . 14 14 11 11 9 7 7 7 7 7 11 7 13 13 9 . . 4 4 3 2 3 Processor 6 | . . . . . 5 7 7 7 7 7 6 4 . . 2 3 6 14 10 14 20 13 Protection 4 | . 6 . 10 4 5 7 7 7 7 7 6 5 2 . . . . 6 3 2 2 . Energy Gun 5 | . 26 28 9 6 4 . . . . . 2 13 13 . . . 2 . 1 . 1 3 Energy Cannon 1 | . . . . . . . . . . . 2 . 3 1 . . 1 5 1 . . . Ballistic Gun 3 | . 1 . 12 2 9 8 7 6 7 6 2 . . 2 4 . . 2 5 3 . . Ballistic Cannon 3 | . . . . . 2 11 15 15 15 15 8 . . 2 4 . . 4 2 3 . . Naked Turns 222 | . . . . . . . . . . . . . . . 214 8 . . . . . . Heaviest Build 178 | 13 92 93 95 97 98 121 121 122 121 121 126 128 131 122 128 21 24 155 178 146 56 42 Greatest Support 155 | 26 26 26 26 30 42 32 28 28 28 28 32 50 50 28 35 20 25 135 155 40 56 150 Greatest Overweight (x) 14 | . 3 9 9 4 9 7 4 4 4 4 9 5 4 4 4 3 1 3 13 14 2 3 Average Overweight (x) 2 | . 2 7 4 3 3 3 4 4 4 4 4 2 3 3 1 . . . . 4 . . Largest Inventory Capacity 25 | 8 25 25 25 25 25 25 25 25 25 25 25 25 25 25 25 5 5 25 25 25 10 10 Average Capacity 22 | 7 24 25 25 25 25 25 25 25 25 25 25 25 25 25 20 5 5 23 25 21 8 8 Most Carried 25 | 4 22 21 25 25 25 25 25 25 25 25 25 25 25 25 23 5 5 25 24 22 10 10 Average Carried 19 | 1 16 20 23 20 22 24 24 24 25 24 22 24 24 23 16 4 3 16 21 16 5 7 Final Capacity 25 | 8 25 25 25 25 25 25 25 25 25 25 25 25 25 25 5 5 5 25 25 5 10 5 Final Carried 25 | 4 18 21 25 21 25 25 24 25 25 25 22 25 23 22 5 5 3 25 16 5 4 2 Class Distribution -------------------- 37% | Mutant 27% | Scavenger-Mutant 14% | Gunner 6% | Scavenger-Gunner 3% | Tank Dominant Class ---------------- Mutant | -10/Materials Mutant | -10/Mines Mutant | -9/Materials Scavenger-Mutant | -9/Mines Scavenger-Mutant | -8/Materials Scavenger-Gunner | -7/Factory Gunner | -7/Lower Caves Gunner | -7/Lower Caves Gunner | -7/Data Miner Gunner | -6/Proximity Caves Tank | -6/Factory Mutant | -6/Lower Caves Derelict-Tank | -6/Lower Caves Derelict-Mutant | -6/Zion Mutant | -5/Proximity Caves Mutant | -5/Factory Hacker-Mutant | -4/Factory Scavenger-Mutant | -4/Extension Scavenger-Mutant | -3/Research Scavenger-Mutant | -2/Research Mutant | -2/Quarantine Mutant | -1/Access Resources | -11 -10 -10 -9 -9 -8 -7 -7 -7 -7 -6 -6 -6 -6 -6 -5 -5 -4 -4 -3 -2 -2 -1 ----------- Run | Scr Mat Min Mat Min Mat Fac Low Low Dat Pro Fac Low Low Zio Pro Fac Fac Ext Res Res Qua Acc Matter Collected 7626 | 191 348 65 513 278 496 587 328 84 . 104 832 223 244 4 426 182 106 760 1097 102 489 167 Remotely 524 | . . . . . 10 409 . . . . 105 . . . . . . . . . . . Salvage Created 9968 | . 524 89 1191 479 834 761 181 81 . 89 1168 168 493 54 525 206 49 670 1565 76 450 315 Parts 468 | . 39 10 58 15 37 28 10 8 . 8 50 3 23 1 13 2 9 26 82 10 24 12 Haulers Intercepted 5 | . . . 2 . . . . . . . 2 . . . . . . 1 . . . . Recyclers Shooed 6 | . . . 2 1 . . . . . . 2 . . . . 1 . . . . . . Parts Field Recycled 9 | . . . . . . . . . . . . . . . . . . . 4 5 . . Retrieved Matter 144 | . . . . . . . . . . . . . . . . . . . 38 106 . . Parts Self-Destructed 42 | . . . . . . . 15 4 . 7 . . 5 . 11 . . . . . . . Prevented 20 | . . . . . . . . . . . . 2 18 . . . . . . . . . Kills | -11 -10 -10 -9 -9 -8 -7 -7 -7 -7 -6 -6 -6 -6 -6 -5 -5 -4 -4 -3 -2 -2 -1 ------- Run | Scr Mat Min Mat Min Mat Fac Low Low Dat Pro Fac Low Low Zio Pro Fac Fac Ext Res Res Qua Acc Combat Hostiles Destroyed 205 | . 15 6 16 21 18 17 5 7 . 5 23 5 14 1 13 . 6 6 20 1 1 5 Melee 1 | . . . . . . . . . . . 1 . . . . . . . . . . . Guns 74 | . 15 6 12 4 13 4 . . . 1 3 . 3 1 1 . . 2 6 . . 3 Cannons 42 | . . . . . 1 13 5 . . . 8 . 1 . 5 . . 3 4 1 1 . AOE 72 | . . . 4 17 4 . . 7 . 4 10 3 7 . 7 . 6 . 3 . . . Classes Destroyed 22 | . 3 . 7 4 1 . 1 . . . 3 . . . . 1 . 1 . . 1 . Worker 21 | . . . 3 1 . . . . . . 6 . . . . 3 3 . 4 . 1 . Builder 6 | . . . 2 . . . . . . . 2 . . . . . . . 2 . . . Tunneler 5 | . . . . 1 . 1 . . . . 1 . . . . . . . 1 1 . . Hauler 5 | . . . 2 . . . . . . . 2 . . . . . . 1 . . . . Recycler 11 | . . . 2 2 1 . . . . . 2 . . . . 1 . 1 . . 2 . Mechanic 1 | . . . . . . . . . . . . . . . . . . . . . 1 . Operator 1 | . . . . . . . . . . . . . . . . 1 . . . . . . Drone 1 | . . . . 1 . . . . . . . . . . . . . . . . . . Watcher 5 | . 1 . 1 . . 1 . . . . . . . . . . . . . . 2 . Swarmer 53 | . 6 6 . 1 4 . . 7 . 5 2 3 8 . . . 6 1 2 . . 2 Saboteur 1 | . . . . . . . . . . . 1 . . . . . . . . . . . Grunt 70 | . 9 . 9 2 10 12 3 . . . 4 . 2 . 7 . . 1 9 . . 2 Brawler 1 | . . . 1 . . . . . . . . . . . . . . . . . . . Duelist 6 | . . . 2 1 1 . . . . . . . . . 2 . . . . . . . Sentry 18 | . . . 4 . 2 5 . . . . 3 . . . 1 . . 2 1 . . . Demolisher 1 | . . . . 1 . . . . . . . . . . . . . . . . . . Specialist 2 | . . . . . . . . . . . 2 . . . . . . . . . . . Hunter 17 | . . . . . 1 . 1 . . . 8 1 4 . . . . . 2 . . . Programmer 15 | . . . . . . . . . . . 3 . . . 3 . . 1 5 1 1 1 Behemoth 2 | . . . . . . . . . . . . . . . . . . 1 1 . . . Assembled 16 | . . . . 16 . . . . . . . . . . . . . . . . . . Butcher 1 | . . . . . . . . . . . . . . 1 . . . . . . . . Mutant 2 | . . . . . . . 1 . . . . 1 . . . . . . . . . . Best Kill Streak 14 | . 6 3 4 12 7 4 2 4 . 3 14 3 4 1 4 2 6 2 5 1 3 2 Combat Bots Only 12 | . 6 3 3 12 7 4 2 4 . 3 9 3 4 1 4 . 3 2 5 1 1 2 Max Kills in Single Turn 5 | . 1 1 3 5 4 1 1 2 . 2 5 2 4 1 3 1 4 1 3 1 1 1 Gunslinging . | . . . . . . . . . . . . . . . . . . . . . . . Exploded 5 | . . . 2 5 4 . . 2 . 2 3 2 4 . 3 . 2 . 3 . . . Melee 1 | . . . . . . . . . . . 1 . . . . . . . . . . . Uniques/NPCs Destroyed . | . . . . . . . . . . . . . . . . . . . . . . . Combat | -11 -10 -10 -9 -9 -8 -7 -7 -7 -7 -6 -6 -6 -6 -6 -5 -5 -4 -4 -3 -2 -2 -1 -------- Run | Scr Mat Min Mat Min Mat Fac Low Low Dat Pro Fac Low Low Zio Pro Fac Fac Ext Res Res Qua Acc Damage Taken 29714 | . 534 235 1018 1386 1107 1096 282 106 . 185 3582 425 630 304 1059 1286 1382 986 5348 1584 2204 4975 Core 6418 | . 74 33 153 242 98 46 18 12 . . 413 96 33 . 287 617 696 316 408 342 995 1539 Absorbed by Shields 689 | . . . . . . . . . . . . . . . . . . 164 525 . . . Reduced by Siege Mode 176 | . . . . . . . . . . . . . . . . . . . . . . 176 Core Remaining (%) 45 | 100 . 57 . 1 82 . . . . 89 . . . . 2 38 . 12 68 . 2 . Volleys Fired 638 | . 37 17 75 30 53 40 15 4 . 5 56 9 20 2 25 1 10 56 85 14 60 24 Largest 3 | . 2 2 2 2 2 3 3 1 . 3 3 3 3 3 3 1 2 3 3 2 1 2 Hottest 300 | . 80 115 85 85 126 117 117 33 . 117 190 170 173 120 157 80 105 171 165 90 300 176 Shots Fired 1195 | . 74 34 150 41 102 116 39 4 . 11 133 19 54 7 56 1 11 73 163 15 60 32 Gun 767 | . 74 34 150 28 95 43 12 . . 3 50 15 37 3 16 1 4 13 99 1 59 30 Cannon 374 | . . . . . 6 73 27 . . 6 76 . 12 4 28 . 2 60 63 14 1 2 Launcher 54 | . . . . 13 1 . . 4 . 2 7 4 5 . 12 . 5 . 1 . . . Special . | . . . . . . . . . . . . . . . . . . . . . . . Kinetic 598 | . 4 . 78 6 61 116 39 . . 9 82 . . 7 41 . . 21 119 15 . . Thermal 207 | . 4 26 16 . 40 . . . . . 25 . . . . 1 6 4 2 . 60 23 Explosive 53 | . . . . 13 1 . . 4 . 2 7 4 5 . 12 . 5 . . . . . Electromagnetic 337 | . 66 8 56 22 . . . . . . 19 15 49 . 3 . . 48 42 . . 9 Robot Hit Streak 25 | . 6 3 22 11 12 25 7 3 . 4 17 5 8 4 8 . 2 7 14 4 2 20 Robot Miss Streak 7 | . 4 6 3 5 3 1 4 1 . 2 4 2 5 2 6 . 3 7 4 2 . 2 Penetration Max 1 | . . . . . . . . . . . . . . . 1 . . 1 1 . . . Secondary Targets 4 | . . . 1 1 2 . . . . . . . . . . . . . . . . . Max Gunslinging Chain 1 | . . . 1 1 1 . . . . . . . . . . . . . . . . . Capacitor 59 | . . . . . . . . . . . . . . . . . . 38 21 . . . Shots Hit Robots 805 | . 41 13 121 34 70 91 25 3 . 2 120 13 29 5 34 5 3 42 110 11 10 23 Core Hits 511 | . 22 6 45 46 32 37 13 11 . 5 130 8 22 2 39 . 13 22 37 2 9 10 Critical Kills 9 | . . . . . . . . . . . . . . . 1 . . 3 4 . 1 . Critical Parts Destroyed 16 | . . . 1 . . . . . . . 1 . . . . 1 . 3 10 . . . Critical Strikes 52 | . 1 . 3 . . 9 . . . . 7 1 1 1 3 1 . 8 14 . 3 . Burn 3 | . . . 2 . . . . . . . 1 . . . . . . . . . . . Destroy 24 | . . . 1 . . . . . . . 1 . . . 1 . . 6 14 . 1 . Blast 16 | . . . . . . 9 . . . . 4 . . 1 2 . . . . . . . Corrupt 5 | . 1 . . . . . . . . . . 1 1 . . . . 2 . . . . Smash 2 | . . . . . . . . . . . 1 . . . . 1 . . . . . . Puncture 2 | . . . . . . . . . . . . . . . . . . . . . 2 . Melee Attacks 157 | . . . . 10 . 3 1 . . . 14 4 1 2 2 23 2 15 23 22 35 . Impact 48 | . . . . . . . . . . . 14 4 1 2 2 23 2 . . . . . Slashing 72 | . . . . 10 . 3 1 . . . . . . . . . . 15 23 20 . . Piercing 37 | . . . . . . . . . . . . . . . . . . . . 2 35 . Sneak Attacks 23 | . . . . 7 . . . . . . 5 . . . . 5 . 1 . 1 4 . Combat Hostiles . | . . . . . . . . . . . . . . . . . . . . . . . Follow-up Attacks 1 | . . . . . . . . . . . . . . . . . . . 1 . . . Damage Inflicted 29312 | . 566 214 2298 2409 1481 2035 538 437 . 323 5372 684 1386 105 2355 589 1030 1759 3316 549 1048 818 Guns 9591 | . 518 214 1829 335 1111 684 127 . . 18 785 216 472 64 311 . 38 283 1808 . . 778 Cannons 7129 | . . . . . 94 1314 411 . . 23 1755 . 144 41 455 . . 1193 967 442 250 40 Explosions 9043 | . 48 . 469 1317 276 . . 437 . 282 1935 414 770 . 1589 . 992 75 439 . . . Melee 3549 | . . . . 757 . 37 . . . . 897 54 . . . 589 . 208 102 107 798 . Ramming . | . . . . . . . . . . . . . . . . . . . . . . . Kinetic 9779 | . 14 . 1079 95 769 1998 538 . . 41 1675 . . 105 732 . . 404 1887 442 . . Thermal 3305 | . 74 179 619 174 436 . . . . . 761 76 33 . . . 38 75 . . 250 590 Explosive 7488 | . . . . 1143 276 . . 437 . 282 1694 338 737 . 1589 . 992 . . . . . Electromagnetic 5191 | . 478 35 600 240 . . . . . . 345 216 616 . 34 . . 1072 1327 . . 228 Impact 1540 | . . . . . . . . . . . 897 54 . . . 589 . . . . . . Slashing 1104 | . . . . 757 . 37 . . . . . . . . . . . 208 102 . . . Piercing 905 | . . . . . . . . . . . . . . . . . . . . 107 798 . Highest Corruption 20 | . . . . . 1 . . . . . 4 4 9 12 12 . 1 3 20 8 8 10 Average Corruption 5 | . . . . . 1 . . . . . 2 2 6 7 10 . 1 2 9 6 8 5 Corruption Purged 10 | . . . . . . . . . . . . 4 4 . 2 . . . . . . . Effects 183 | . . . . . . . . . . . 5 8 21 12 39 . . 15 53 7 4 19 Message Errors 41 | . . . . . . . . . . . 2 1 5 1 5 . . 5 13 3 1 5 Matter Fused 41 | . . . . . . . . . . . 1 4 3 2 12 . . 3 10 3 . 3 Heat Flow Errors 22 | . . . . . . . . . . . . . 4 1 7 . . 2 5 . 2 1 Energy Discharges 24 | . . . . . . . . . . . 1 1 5 1 2 . . 3 6 . 1 4 Parts Rejected 3 | . . . . . . . . . . . . . . 1 1 . . . 1 . . . Data Loss (minor) 22 | . . . . . . . . . . . 1 2 1 3 4 . . 2 8 . . 1 Data Loss (major) 5 | . . . . . . . . . . . . . 2 . 1 . . . . 1 . 1 Misfires 4 | . . . . . . . . . . . . . 1 . . . . . 3 . . . Alerts 1 | . . . . . . . . . . . . . . 1 . . . . . . . . Misdirections 16 | . . . . . . . . . . . . . . 2 7 . . . 3 . . 4 Weapon Failures 4 | . . . . . . . . . . . . . . . . . . . 4 . . . Overload Shots . | . . . . . . . . . . . . . . . . . . . . . . . Overflow Damage 2032 | . . . 2 401 9 12 13 16 . 1 503 39 73 . 135 442 72 42 48 92 132 . Projectiles 243 | . . . . . . 12 13 . . . 22 . 17 . . . . 42 45 92 . . Explosions 521 | . . . 2 99 9 . . 16 . 1 89 39 56 . 135 . 72 . 3 . . . Melee 1268 | . . . . 302 . . . . . . 392 . . . . 442 . . . . 132 . Knockbacks 53 | . . . . . 1 12 3 . . . 21 . . 1 5 3 . 1 6 . . . Impact 5 | . . . . . . . . . . . 2 . . . . 3 . . . . . . Kinetic 46 | . . . . . 1 11 2 . . . 19 . . 1 5 . . 1 6 . . . Secondary 2 | . . . . . . 1 1 . . . . . . . . . . . . . . . Self-Inflicted Damage 435 | . . . 100 70 . . . . . 35 49 13 42 . 47 . . 37 42 . . . Shots 15 | . . . 3 4 . . . . . 1 1 1 1 . 1 . . 1 2 . . . Rammed . | . . . . . . . . . . . . . . . . . . . . . . . Targets Rammed . | . . . . . . . . . . . . . . . . . . . . . . . Kicked . | . . . . . . . . . . . . . . . . . . . . . . . Crushed . | . . . . . . . . . . . . . . . . . . . . . . . Highest Temperature 448 | . 188 156 30 15 210 268 209 . . 57 306 174 361 246 236 . 28 318 448 313 219 183 Average Temperature 84 | . 59 61 7 3 57 89 75 . . 30 102 75 107 84 63 . 15 106 95 157 109 51 Received Heat Transfer 3802 | . 210 . 363 142 351 519 144 . . . 402 52 84 . 273 258 54 188 366 108 63 225 Effects 12 | . . . . . . 2 . . . . 3 . . . . . . 1 6 . . . Shutdowns 1 | . . . . . . . . . . . . . . . . . . . 1 . . . Interference 10 | . . . . . . 2 . . . . 2 . . . . . . 1 5 . . . Short Circuit 1 | . . . . . . . . . . . 1 . . . . . . . . . . . Siege Activations 4 | . . . . . . . . . . . . . . . . . . . . . . 4 Total Turns 69 | . . . . . . . . . . . . . . . . . . . . . . 69 Longest Duration 29 | . . . . . . . . . . . . . . . . . . . . . . 29 Robots Corrupted 16 | . . . . . . . . . . . . 2 3 . . . . 2 7 . . 2 Combat Hostiles 15 | . . . . . . . . . . . . 2 3 . . . . 1 7 . . 2 Parts Fried 39 | . 2 . 2 . . . . . . . 8 2 5 . . 3 . 2 12 . . 3 Impact Corruptions 27 | . . . . . . . . . . . 12 . . . . 15 . . . . . . Robots Melted 1 | . . . . . . . . . . . 1 . . . . . . . . . . . Combat Hostiles 1 | . . . . . . . . . . . 1 . . . . . . . . . . . Parts Melted 6 | . . 2 2 . 1 . . . . . 1 . . . . . . . . . . . Heat Transferred 4864 | . 74 444 1342 250 925 . . . . . 858 50 50 . . . 74 150 . . . 647 Parts Sabotaged . | . . . . . . . . . . . . . . . . . . . . . . . Parts Stolen . | . . . . . . . . . . . . . . . . . . . . . . . Parts Stripped . | . . . . . . . . . . . . . . . . . . . . . . . Power Chain Reactions 12 | . 1 . 6 1 . . . . . . 1 1 1 . . . . 1 . . . . Missiles Intercepted . | . . . . . . . . . . . . . . . . . . . . . . . Alert | -11 -10 -10 -9 -9 -8 -7 -7 -7 -7 -6 -6 -6 -6 -6 -5 -5 -4 -4 -3 -2 -2 -1 ------- Run | Scr Mat Min Mat Min Mat Fac Low Low Dat Pro Fac Low Low Zio Pro Fac Fac Ext Res Res Qua Acc Peak Influence 921 | . 227 209 329 181 366 392 . . . . 782 . . . . 556 502 381 304 276 921 525 Initial 420 | . . 64 3 96 65 98 . . . . 98 . . . . 78 174 245 166 117 149 420 Average 217 | . 100 89 158 109 209 242 . . . . 345 . . . . 255 299 214 174 93 547 396 Maximum Alert Level 3 | . 1 1 1 . 1 1 . . . . 3 . . . . 2 2 1 1 1 3 2 Low Security (%) 54 | 100 90 77 57 100 38 28 . . . . 50 . . . . 51 18 48 59 96 5 1 Level 1 34 | . 9 22 42 . 61 71 . . . . 12 . . . . 29 72 51 40 3 25 28 Level 2 9 | . . . . . . . . . . . 27 . . . . 18 9 . . . 50 70 Level 3 1 | . . . . . . . . . . . 9 . . . . . . . . . 18 . Level 4 . | . . . . . . . . . . . . . . . . . . . . . . . Level 5 . | . . . . . . . . . . . . . . . . . . . . . . . High Security . | . . . . . . . . . . . . . . . . . . . . . . . Max Security . | . . . . . . . . . . . . . . . . . . . . . . . Squads Dispatched 46 | . 4 . 2 . 1 6 . . . . 7 . . . . 2 4 2 4 3 5 6 Investigation 14 | . 2 . 1 . . 2 . . . . . . . . . 1 2 1 2 . 2 1 Extermination 10 | . . . . . . . . . . . 2 . . . . . 1 . 2 2 2 1 Reinforcement 13 | . 2 . 1 . 1 . . . . . 3 . . . . 1 1 1 . 1 1 1 Assault 1 | . . . . . . . . . . . 1 . . . . . . . . . . . Garrison 8 | . . . . . . 4 . . . . 1 . . . . . . . . . . 3 Intercept . | . . . . . . . . . . . . . . . . . . . . . . . Construction Impeded 2 | . . . . . . . . . . . 1 . . . . . . 1 . . . . Haulers Reinforced 1 | . . . . . . . . . . . . . . . . . 1 . . . . . Cargo Convoy Interrupts 1 | . . . . . . . . . . . 1 . . . . . . . . . . . Stealth | -11 -10 -10 -9 -9 -8 -7 -7 -7 -7 -6 -6 -6 -6 -6 -5 -5 -4 -4 -3 -2 -2 -1 --------- Run | Scr Mat Min Mat Min Mat Fac Low Low Dat Pro Fac Low Low Zio Pro Fac Fac Ext Res Res Qua Acc Distress Signals 13 | . . . 2 . . 2 . . . . 2 . . . . 2 . 1 1 1 2 . Communications Jammed . | . . . . . . . . . . . . . . . . . . . . . . . Distress Signals . | . . . . . . . . . . . . . . . . . . . . . . . Times Spotted 496 | . 23 7 39 32 28 21 9 7 . 6 46 4 13 4 26 33 18 32 38 24 57 29 Peak Tracking Total 14 | . 3 3 7 14 6 4 4 4 . 3 14 2 4 4 8 12 12 6 14 12 13 12 Tactical Retreats 69 | . 1 1 6 4 5 1 1 . . . 1 1 . 1 9 11 3 2 5 5 7 5 Traps | -11 -10 -10 -9 -9 -8 -7 -7 -7 -7 -6 -6 -6 -6 -6 -5 -5 -4 -4 -3 -2 -2 -1 ------- Run | Scr Mat Min Mat Min Mat Fac Low Low Dat Pro Fac Low Low Zio Pro Fac Fac Ext Res Res Qua Acc Traps Triggered 14 | . 2 . 1 . 1 1 . . . . 4 . . . . . 1 3 1 . . . Indirectly . | . . . . . . . . . . . . . . . . . . . . . . . Trap Hack Attempts . | . . . . . . . . . . . . . . . . . . . . . . . Triggered . | . . . . . . . . . . . . . . . . . . . . . . . Disarmed . | . . . . . . . . . . . . . . . . . . . . . . . Reprogrammed . | . . . . . . . . . . . . . . . . . . . . . . . Reused . | . . . . . . . . . . . . . . . . . . . . . . . Traps Extracted . | . . . . . . . . . . . . . . . . . . . . . . . Installed . | . . . . . . . . . . . . . . . . . . . . . . . Triggered 5 | . 1 . . . . . . . . . . . 3 . . . . 1 . . . . Machines | -11 -10 -10 -9 -9 -8 -7 -7 -7 -7 -6 -6 -6 -6 -6 -5 -5 -4 -4 -3 -2 -2 -1 ---------- Run | Scr Mat Min Mat Min Mat Fac Low Low Dat Pro Fac Low Low Zio Pro Fac Fac Ext Res Res Qua Acc Machines Disabled 27 | . 2 . 3 1 . 3 1 . . . 3 1 . . 1 1 3 1 2 . 4 1 Max in Single Turn 2 | . 1 . 1 1 . 1 1 . . . 1 1 . . 1 1 2 . 1 . 1 1 Garrison Access 1 | . . . . . . . . . . . . . . . . . . . 1 . . . Machines Sabotaged . | . . . . . . . . . . . . . . . . . . . . . . . Garrisons Compromised . | . . . . . . . . . . . . . . . . . . . . . . . Overloaded Fab Kills . | . . . . . . . . . . . . . . . . . . . . . . . Fab Network Shutdowns . | . . . . . . . . . . . . . . . . . . . . . . . Hacking | -11 -10 -10 -9 -9 -8 -7 -7 -7 -7 -6 -6 -6 -6 -6 -5 -5 -4 -4 -3 -2 -2 -1 --------- Run | Scr Mat Min Mat Min Mat Fac Low Low Dat Pro Fac Low Low Zio Pro Fac Fac Ext Res Res Qua Acc Machines Accessed 56 | . 6 1 6 . 3 4 . 1 4 . 2 . 1 1 . 4 3 1 5 2 11 1 Terminals 35 | . 5 . 5 . 3 2 . . . . 2 . . . . 3 2 1 3 1 8 . Fabricators 1 | . . . . . . . . . . . . . . . . . . . . . . 1 Repair Stations 5 | . . . 1 . . 1 . . . . . . . . . . 1 . . . 2 . Recycling Units 3 | . 1 . . . . . . . . . . . . . . 1 . . 1 . . . Scanalyzers 2 | . . . . . . . . . . . . . . . . . . . . 1 1 . Garrison Access 2 | . . . . . . 1 . . . . . . . . . . . . 1 . . . Total Hacks 173 | . 23 1 25 . 5 8 . 1 25 . 4 . 10 4 . 12 9 3 10 5 25 3 Successful 93 | . 11 1 15 . 3 2 . 1 25 . 1 . 10 4 . 4 1 . 4 3 8 . Failed 79 | . 11 . 10 . 2 6 . . . . 3 . . . . 8 8 3 6 2 17 3 Catastrophic 15 | . . . . . 1 3 . . . . 1 . . . . 1 1 1 1 . 6 . Database Lockouts 1 | . 1 . . . . . . . . . . . . . . . . . . . . . Manual 69 | . 17 . 12 . 4 4 . . . . 1 . . . . 5 2 . 5 . 16 3 Terminals 97 | . 20 . 22 . 5 4 . . . . 4 . . . . 7 5 3 5 2 20 . Fabricators 3 | . . . . . . . . . . . . . . . . . . . . . . 3 Repair Stations 13 | . . . 3 . . 2 . . . . . . . . . . 4 . . . 4 . Recycling Units 11 | . 3 . . . . . . . . . . . . . . 5 . . 3 . . . Scanalyzers 4 | . . . . . . . . . . . . . . . . . . . . 3 1 . Garrison Access 4 | . . . . . . 2 . . . . . . . . . . . . 2 . . . Terminal Hacks 64 | . 5 1 10 . 1 1 . 1 25 . 1 . 10 4 . 1 . . . 1 3 . Record 22 | . . . . . . . . . 11 . . . 10 . . . . . . . 1 . Part Schematic 10 | . . . . . . . . . 6 . . . . 4 . . . . . . . . Robot Schematic 5 | . . . . . . . . . 5 . . . . . . . . . . . . . Robot Analysis 3 | . 1 . 2 . . . . . . . . . . . . . . . . . . . Prototype ID Bank 8 | . 2 . 3 . . . . . 3 . . . . . . . . . . . . . Open Door 2 | . . 1 . . . . . 1 . . . . . . . . . . . . . . Level Access Points 1 | . . . . . . . . . . . . . . . . 1 . . . . . . Branch Access Points 3 | . . . 1 . . 1 . . . . 1 . . . . . . . . . . . Terminal Index 1 | . . . . . . . . . . . . . . . . . . . . . 1 . Fabricator Index 1 | . . . . . . . . . . . . . . . . . . . . 1 . . Alert Level 1 | . . . 1 . . . . . . . . . . . . . . . . . . . Locate Traps 2 | . 1 . 1 . . . . . . . . . . . . . . . . . . . Hauler Manifests 2 | . . . 1 . 1 . . . . . . . . . . . . . . . . . Zone Layout 3 | . 1 . 1 . . . . . . . . . . . . . . . . . 1 . Fabricator Hacks . | . . . . . . . . . . . . . . . . . . . . . . . Repair Station Hacks 5 | . . . 2 . . 1 . . . . . . . . . . 1 . . . 1 . Scan Component 3 | . . . 1 . . 1 . . . . . . . . . . . . . . 1 . Repair 1 | . . . 1 . . . . . . . . . . . . . . . . . . . Refit 1 | . . . . . . . . . . . . . . . . . 1 . . . . . Recycling Unit Hacks 1 | . . . . . . . . . . . . . . . . 1 . . . . . . Retrieve Components 1 | . . . . . . . . . . . . . . . . 1 . . . . . . Scanalyzer 2 | . . . . . . . . . . . . . . . . . . . . 2 . . Insert Component 1 | . . . . . . . . . . . . . . . . . . . . 1 . . Analyze 1 | . . . . . . . . . . . . . . . . . . . . 1 . . Garrison Access Hacks . | . . . . . . . . . . . . . . . . . . . . . . . Unauthorized Hacks 21 | . 6 . 3 . 2 . . . . . . . . . . 2 . . 4 . 4 . Terminals 11 | . 3 . 3 . 2 . . . . . . . . . . . . . . . 3 . Track 2 | . . . . . . . . . . . . . . . . . . . . . 2 . Botnet 6 | . 2 . 2 . 1 . . . . . . . . . . . . . . . 1 . Operators 3 | . 1 . 1 . 1 . . . . . . . . . . . . . . . . . Fabricators . | . . . . . . . . . . . . . . . . . . . . . . . Repair Stations . | . . . . . . . . . . . . . . . . . . . . . . . Recycling Units 8 | . 3 . . . . . . . . . . . . . . 2 . . 3 . . . Reject 3 | . 1 . . . . . . . . . . . . . . 1 . . 1 . . . Recyclers 2 | . 1 . . . . . . . . . . . . . . . . . 1 . . . Mask 3 | . 1 . . . . . . . . . . . . . . 1 . . 1 . . . Scanalyzers 1 | . . . . . . . . . . . . . . . . . . . . . 1 . Researchers 1 | . . . . . . . . . . . . . . . . . . . . . 1 . Garrison Access 1 | . . . . . . . . . . . . . . . . . . . 1 . . . Jam 1 | . . . . . . . . . . . . . . . . . . . 1 . . . Data Cores Recovered . | . . . . . . . . . . . . . . . . . . . . . . . Used . | . . . . . . . . . . . . . . . . . . . . . . . Hacking Detections 41 | . 5 . 6 . 2 4 . . . . 2 . . . . 3 3 1 4 1 9 1 Full Trace Events 10 | . . . 1 . . 1 . . . . . . . . . 1 2 1 1 . 2 1 Feedback Events . | . . . . . . . . . . . . . . . . . . . . . . . Feedback Blocked . | . . . . . . . . . . . . . . . . . . . . . . . Robot Schematics Acquired 5 | . . . . . . . . . 5 . . . . . . . . . . . . . Robots Built . | . . . . . . . . . . . . . . . . . . . . . . . Matter . | . . . . . . . . . . . . . . . . . . . . . . . Time . | . . . . . . . . . . . . . . . . . . . . . . . Total Robot Build Rating . | . . . . . . . . . . . . . . . . . . . . . . . Part Schematics Acquired 11 | . . . . . . . . . 6 . . . . 4 . . . . . 1 . . Parts Built . | . . . . . . . . . . . . . . . . . . . . . . . Matter . | . . . . . . . . . . . . . . . . . . . . . . . Time . | . . . . . . . . . . . . . . . . . . . . . . . Total Part Build Rating . | . . . . . . . . . . . . . . . . . . . . . . . Parts Repaired 1 | . . . 1 . . . . . . . . . . . . . . . . . . . Time 26 | . . . 26 . . . . . . . . . . . . . . . . . . . Parts Recycled . | . . . . . . . . . . . . . . . . . . . . . . . Recycled Matter . | . . . . . . . . . . . . . . . . . . . . . . . Retrieved Matter . | . . . . . . . . . . . . . . . . . . . . . . . Retrieved Components . | . . . . . . . . . . . . . . . . . . . . . . . Parts Scanalyzed 1 | . . . . . . . . . . . . . . . . . . . . 1 . . Part Schematics Acquired 1 | . . . . . . . . . . . . . . . . . . . . 1 . . Parts Damaged 1 | . . . . . . . . . . . . . . . . . . . . 1 . . Bothacking | -11 -10 -10 -9 -9 -8 -7 -7 -7 -7 -6 -6 -6 -6 -6 -5 -5 -4 -4 -3 -2 -2 -1 ------------ Run | Scr Mat Min Mat Min Mat Fac Low Low Dat Pro Fac Low Low Zio Pro Fac Fac Ext Res Res Qua Acc Used RIF Installer . | . . . . . . . . . . . . . . . . . . . . . . . Robots Hacked . | . . . . . . . . . . . . . . . . . . . . . . . Non-combat . | . . . . . . . . . . . . . . . . . . . . . . . Combat . | . . . . . . . . . . . . . . . . . . . . . . . Robot Hacks Applied . | . . . . . . . . . . . . . . . . . . . . . . . Relay Couplers Released . | . . . . . . . . . . . . . . . . . . . . . . . Robots Rewired 15 | . . . . . . . 3 . . . . . . . . . . 12 . . . . Allies Hacked . | . . . . . . . . . . . . . . . . . . . . . . . Hacks Repelled . | . . . . . . . . . . . . . . . . . . . . . . . Allies | -11 -10 -10 -9 -9 -8 -7 -7 -7 -7 -6 -6 -6 -6 -6 -5 -5 -4 -4 -3 -2 -2 -1 -------- Run | Scr Mat Min Mat Min Mat Fac Low Low Dat Pro Fac Low Low Zio Pro Fac Fac Ext Res Res Qua Acc Total Allies 35 | . . . . . . . 3 . . 1 . . . . . . . 18 . . 6 7 Largest Group 7 | . . . . . . . 3 1 . 1 1 . . . . . . 7 1 . 6 7 Highest-Rated Group 387 | . . . . . . . 75 25 . 95 95 . . . . . . 387 150 . 87 98 Highest-Rated Ally 156 | . . . . . . . 25 25 . 95 95 . . . . . . 156 150 . 15 14 Total Orders 3 | . . 1 . 2 . . . . . . . . . . . . . . . . . . RETURN 3 | . . 1 . 2 . . . . . . . . . . . . . . . . . . Ally Attacks 210 | . . . . 23 . . 9 . . 2 7 . . . 3 . . 146 . . 10 10 Total Damage 5965 | . . . . 113 . . 266 . . 46 132 . . . 6 . . 4592 . . 588 222 Kills 36 | . . . . 3 . . 3 . . 1 1 . . . . . . 27 . . 1 . Allies Corrupted 2 | . . . . . . . . . . . . . . . . . . 1 . . . 1 Allies Melted 1 | . . . . . . . . . . . . . . . . . . 1 . . . . Intel | -11 -10 -10 -9 -9 -8 -7 -7 -7 -7 -6 -6 -6 -6 -6 -5 -5 -4 -4 -3 -2 -2 -1 ------- Run | Scr Mat Min Mat Min Mat Fac Low Low Dat Pro Fac Low Low Zio Pro Fac Fac Ext Res Res Qua Acc Robot Analysis Total 3 | . 1 . 2 . . . . . . . . . . . . . . . . . . . Derelict Logs Recovered 8 | . . 2 . . . . 1 . . 1 . 1 2 1 . . . . . . . . Drone Launches 11 | . . 1 . 8 . . . . . . 1 . . . 1 . . . . . . . Drone Recoveries 8 | . . 1 . 6 . . . . . . 1 . . . . . . . . . . . Exploration | -11 -10 -10 -9 -9 -8 -7 -7 -7 -7 -6 -6 -6 -6 -6 -5 -5 -4 -4 -3 -2 -2 -1 ------------- Run | Scr Mat Min Mat Min Mat Fac Low Low Dat Pro Fac Low Low Zio Pro Fac Fac Ext Res Res Qua Acc Turns Passed 17546 | 45 1098 719 1264 511 939 642 767 499 121 399 1197 649 857 264 930 407 251 2029 1844 793 750 571 Spaces Moved 11214 | 37 673 344 663 266 499 289 424 310 79 244 511 478 470 164 723 516 355 977 799 538 1389 466 Core 1238 | 3 . . . . . . . . . . . . . . 418 401 135 9 . . 77 195 Treads 6 | . . . . . . . . . . . . . . . . . . . . . . 6 Legs 1764 | . . . . . . . . . . . . . . . 96 . 1 883 784 . . . Wheels 5869 | 34 673 344 663 266 499 289 424 310 79 244 511 478 470 164 209 . . . 15 197 . . Hover 550 | . . . . . . . . . . . . . . . . 115 53 . . . 117 265 Flight 1787 | . . . . . . . . . . . . . . . . . 166 85 . 341 1195 . Fastest Speed 18 | 50 90 135 135 125 123 145 150 155 155 155 128 120 120 145 50 50 42 40 120 26 18 50 Average Speed 121 | 87 134 189 142 130 138 157 150 155 155 155 159 122 153 149 112 59 53 169 173 119 25 55 Slowest Speed 290 | 100 135 215 215 140 215 205 155 155 155 155 225 160 160 160 280 200 160 200 280 290 200 200 Overloaded Moves 31 | . . . . . . . . . . . . . . . . . . . . . 31 . Propulsion Burnouts . | . . . . . . . . . . . . . . . . . . . . . . . Robots Hopped 13 | . . . . . . . . . . . . . . . . . 1 4 . 1 7 . Cave-ins Triggered . | . . . . . . . . . . . . . . . . . . . . . . . Teleports 3 | . . . . . . . . . . . . . . . . . . . . . 2 1 Exploration Rate (%) 45 | 3 96 79 56 59 37 11 55 45 68 43 18 73 61 15 83 21 13 68 17 25 79 15 Regions Visited 22 Branch Regions 12 Pre-discovered Areas 5 | . . 1 . . . . . . 1 . . . 3 . . . . . . . . . Known Exits Taken 8 | . . . 1 . . 1 . . . 1 1 . . . . 1 1 . . 1 1 . Unknown Exits Taken 14 | 1 1 1 . 1 1 . 1 1 1 . . 1 1 1 1 . . 1 1 . . . Scrap Searched 14 | . . 1 . 1 . . 1 2 . 4 . 3 1 . 1 . . . . . . . Spaces Dug 158 | . . . . 19 . 2 . . . 12 1 . 1 2 20 18 4 4 17 20 38 . Terrain Destroyed 670 | . 3 . 8 86 10 5 5 36 . 14 35 74 75 3 138 18 41 14 41 23 41 . Melee 81 | . . . . . . 2 . . . . 1 . 1 2 2 17 2 . 16 20 18 . Projectile 80 | . . . . . . 3 5 . . 2 4 . . 1 2 1 2 9 25 3 23 . AOE 509 | . 3 . 8 86 10 . . 36 . 12 30 74 74 . 134 . 37 5 . . . . Terrain Rammed . | . . . . . . . . . . . . . . . . . . . . . . . Walls Destroyed . | . . . . . . . . . . . . . . . . . . . . . . . Machines Disabled . | . . . . . . . . . . . . . . . . . . . . . . . Actions | -11 -10 -10 -9 -9 -8 -7 -7 -7 -7 -6 -6 -6 -6 -6 -5 -5 -4 -4 -3 -2 -2 -1 --------- Run | Scr Mat Min Mat Min Mat Fac Low Low Dat Pro Fac Low Low Zio Pro Fac Fac Ext Res Res Qua Acc Total 13919 | 46 792 376 848 373 654 402 525 326 78 256 758 518 569 176 800 583 397 1289 1091 643 1669 750 Wait 869 | . 45 3 43 49 36 33 21 . . 2 68 . 65 . 13 4 13 42 101 23 108 200 Move 11169 | 36 672 343 662 265 498 288 423 309 78 243 510 477 469 163 722 515 352 970 798 535 1375 466 Hop 10 | . . . . . . . . . . . . . . . . . 1 2 . 1 6 . Pick Up 195 | 4 20 3 28 2 16 12 2 5 . 1 26 10 2 . 1 2 3 18 13 8 14 5 Fast Attach 162 | 6 2 2 2 . 13 3 . . . . 12 3 3 1 2 10 7 20 17 14 28 17 Attach 186 | . 5 1 15 11 11 8 2 . . . 25 4 3 4 14 14 5 7 24 6 11 16 Detach 103 | . 1 2 2 . 8 1 . . . . 8 1 . 3 11 13 1 10 10 5 14 13 Swap 117 | . 8 4 9 6 8 6 3 4 . 4 13 5 5 1 8 . 2 11 19 . 1 . Drop 117 | . 2 1 12 . 11 8 2 4 . 1 15 5 1 . 2 1 1 7 2 15 18 9 Fire 638 | . 37 17 75 30 53 40 15 4 . 5 56 9 20 2 25 1 10 56 85 14 60 24 Melee 155 | . . . . 10 . 3 1 . . . 14 4 1 2 2 23 2 15 22 22 34 . Ram . | . . . . . . . . . . . . . . . . . . . . . . . Kick . | . . . . . . . . . . . . . . . . . . . . . . . Crush . | . . . . . . . . . . . . . . . . . . . . . . . Escape Stasis 23 | . . . . . . . . . . . 8 . . . . . . 15 . . . . Rewire 175 | . . . . . . . 56 . . . 3 . . . . . . 116 . . . . Trap . | . . . . . . . . . . . . . . . . . . . . . . . Miscellaneous . | . . . . . . . . . . . . . . . . . . . . . . . Route ------- -11/Scrapyard -10/Materials (discovered 5 exits: *Mat x3 / *Min x2) -10/Mines -9/Materials (discovered 3 exits: *Mat / *Min x2) -9/Mines -8/Materials -7/Factory (discovered 3 exits: *Sto / *Low x2) -7/Lower Caves -7/Lower Caves (discovered 2 exits: *Fac / *Dat) -7/Data Miner -6/Proximity Caves -6/Factory (discovered 2 exits: *Low x2) -6/Lower Caves -6/Lower Caves (discovered 2 exits: *Fac / *Zio) -6/Zion -5/Proximity Caves -5/Factory (discovered 4 exits: *Fac x4) -4/Factory -4/Extension (discovered 2 exits: *Res / [*Cet]) -3/Research -2/Research -2/Quarantine -1/Access History --------- Turn | Location | Event 27 | -11/Scrapyard | Discovered new exit (range 16) 46 | -11/Scrapyard | Entered Materials 272 | -10/Materials | Discovered new exit (range 13) 316 | -10/Materials | Build established: Mutant 369 | -10/Materials | Discovered new exit (range 16) 497 | -10/Materials | Discovered new exit (range 15) 785 | -10/Materials | Discovered new exit (range 3) 872 | -10/Materials | Lost 3 parts (1u2w) 901 | -10/Materials | Central database locked down 923 | -10/Materials | Discovered new exit (range 10) 1144 | -10/Materials | Entered Mines 1151 | -10/Mines | Found the Drone Emporium 1159 | -10/Mines | Found Prototype Device 1159 | -10/Mines | Identified Thief Drone Bay 1323 | -10/Mines | Learned Materials stockpile data 1460 | -10/Mines | Received a Rocket Launcher from a helpful Derelict 1644 | -10/Mines | Learned location of Mines (-9) 1676 | -10/Mines | Discovered new exit (range 10) 1863 | -10/Mines | Entered Materials 1863 | -9/Materials | Evolved 2 slots: Propulsion x1, Utility x1 2215 | -9/Materials | Lost 4 parts (2n2w) 2672 | -9/Materials | Discovered new exit (range 15) 2753 | -9/Materials | Repaired Lgt. Treads 2949 | -9/Materials | Identified exit to Mines 3127 | -9/Materials | Entered Mines 3273 | -9/Mines | Assembled infested the area 3316 | -9/Mines | Core integrity fell below 50% 3320 | -9/Mines | Core integrity fell below 20% 3327 | -9/Mines | Destroyed 12 combat bots 3372 | -9/Mines | Lost 12 parts (1p4n2u5w) 3601 | -9/Mines | Build established: Scavenger-Mutant 3633 | -9/Mines | Discovered new exit (range 5) 3638 | -9/Mines | Entered Materials 3638 | -8/Materials | Evolved 2 slots: Propulsion x1, Utility x1 3992 | -8/Materials | Lost 12 parts (2p5n1u4w) 4167 | -8/Materials | Destroyed 7 combat bots 4168 | -8/Materials | Discovered new exit (range 9) 4577 | -8/Materials | Entered Factory 4577 | -7/Factory | Evolved 2 slots: Utility x1, Weapon x1 4679 | -7/Factory | Identified exit to Storage 4679 | -7/Factory | Identified exit to Lower Caves 5126 | -7/Factory | Lost 3 parts (1n2u) 5180 | -7/Factory | Garrison activated, responded to threat 5219 | -7/Factory | Entered Lower Caves 5367 | -7/Lower Caves | Learned location of 1 exit from Proximity Caves 5504 | -7/Lower Caves | Build established: Gunner 5552 | -7/Lower Caves | Attacked by a delusional Derelict stockpiling Unaware 5856 | -7/Lower Caves | Discovered new exit (range 9) 5986 | -7/Lower Caves | Entered another Lower Caves area 5986 | -7/Lower Caves | Accompanied by 1 ally 6029 | -7/Lower Caves | Discovered new exit (range 10) 6061 | -7/Lower Caves | Encountered a Warlord checkpoint 6441 | -7/Lower Caves | Discovered new exit (range 8) 6485 | -7/Lower Caves | Entered Data Miner 6485 | -7/Data Miner | Discovered new exit (range 6) 6515 | -7/Data Miner | Met Data Miner 6544 | -7/Data Miner | Learned location of Section 7 (-2) 6544 | -7/Data Miner | Acquired the access code to Warlord's prototype stash 6569 | -7/Data Miner | Received God Mode back door access code from Data Miner 6606 | -7/Data Miner | Entered Proximity Caves 6607 | -6/Proximity Caves | Identified exit to Factory 6737 | -6/Proximity Caves | Escorted by Enhanced Grunt 6768 | -6/Proximity Caves | Learned Factory terminal intel 7005 | -6/Proximity Caves | Entered Factory 7005 | -6/Factory | Accompanied by 1 ally 7005 | -6/Factory | Evolved 2 slots: Propulsion x1, Utility x1 7006 | -6/Factory | Loaded intel: 19 terminal locations 7226 | -6/Factory | Identified exit to Lower Caves 7284 | -6/Factory | Found Prototype Device 7284 | -6/Factory | Identified Exp. Thermal Shield 7632 | -6/Factory | Destroyed 9 combat bots 7647 | -6/Factory | Lost 15 parts (2p6n4u3w) 7758 | -6/Factory | Cargo convoy interrupted 8055 | -6/Factory | First assault squad dispatched 8079 | -6/Factory | Lost 3 parts (1n1u1w) 8139 | -6/Factory | Garrison activated, responded to threat 8202 | -6/Factory | Entered Lower Caves 8229 | -6/Lower Caves | Core integrity fell below 50% 8259 | -6/Lower Caves | Lost 3 parts (3n) 8311 | -6/Lower Caves | Learned Factory stockpile data 8557 | -6/Lower Caves | Build established: Mutant 8557 | -6/Lower Caves | Encountered a Warlord checkpoint 8664 | -6/Lower Caves | Spotted B-75 Beast 8784 | -6/Lower Caves | Attacked by a delusional Derelict stockpiling parts 8833 | -6/Lower Caves | Discovered new exit (range 9) 8851 | -6/Lower Caves | Entered another Lower Caves area 8965 | -6/Lower Caves | Discovered new exit (range 3) 9159 | -6/Lower Caves | Attracted the attention of an 0b10 checkpoint 9196 | -6/Lower Caves | Lost 3 parts (1n2u) 9202 | -6/Lower Caves | Learned Factory interactive machine intel 9225 | -6/Lower Caves | Learned location of Extension (-4) 9225 | -6/Lower Caves | Learned location of Armory (-3) 9225 | -6/Lower Caves | Learned 8 Research zone layouts 9225 | -6/Lower Caves | Learned Extension stockpile data 9225 | -6/Lower Caves | Learned Armory stockpile data 9225 | -6/Lower Caves | Learned Factory garrison access intel 9225 | -6/Lower Caves | Learned Extension garrison access intel 9692 | -6/Lower Caves | Discovered new exit (range 11) 9708 | -6/Lower Caves | Entered Zion 9731 | -6/Zion | Learned Factory emergency access door positions 9778 | -6/Zion | Discovered new exit (range 13) 9864 | -6/Zion | System corruption reached 10% 9865 | -6/Zion | Attacked by Zionites 9868 | -6/Zion | Spotted QX-6HK(B) 9872 | -6/Zion | Spotted F5-XW1(B) 9972 | -6/Zion | Entered Proximity Caves 10232 | -5/Proximity Caves | Spotted B-75 Beast 10291 | -5/Proximity Caves | Attracted the attention of an 0b10 checkpoint 10304 | -5/Proximity Caves | Core integrity fell below 20% 10684 | -5/Proximity Caves | Released all parts (7) 10899 | -5/Proximity Caves | Discovered new exit (range 5) 10902 | -5/Proximity Caves | Entered Factory 10902 | -5/Factory | Evolved 2 slots: Propulsion x1, Utility x1 10905 | -5/Factory | Loaded intel: 45 interactive machine locations 10906 | -5/Factory | Loaded intel: 4 garrison access locations 11204 | -5/Factory | Core integrity fell below 50% 11246 | -5/Factory | Identified exit to Factory 11309 | -5/Factory | Entered another Factory area 11309 | -4/Factory | Evolved 2 slots: Power x1, Utility x1 11434 | -4/Factory | Lost 7 parts (2p2n3w) 11471 | -4/Factory | Core integrity fell below 50% 11545 | -4/Factory | Lost 5 parts (2n2u1w) 11551 | -4/Factory | Incoming investigation squad redirected 11555 | -4/Factory | Discovered new exit (range 12) 11560 | -4/Factory | Identified exit to Extension 11560 | -4/Factory | Entered Extension 11580 | -4/Extension | Rescued a captive Derelict 11581 | -4/Extension | Rescued a captive Derelict 11592 | -4/Extension | Rescued a captive Derelict 11666 | -4/Extension | Core integrity fell below 20% 11688 | -4/Extension | Lost 4 parts (4n) 11792 | -4/Extension | Rescued A7 11973 | -4/Extension | Rescued a captive Derelict 11973 | -4/Extension | Rescued a captive Derelict 11996 | -4/Extension | Build established: Scavenger-Gunner 12341 | -4/Extension | Found Quantum Capacitor 12641 | -4/Extension | Build established: Scavenger-Mutant 12839 | -4/Extension | Spotted B-86 Titan 12855 | -4/Extension | Allies destroyed B-86 Titan 12883 | -4/Extension | Spotted B-86 Titan 12895 | -4/Extension | Destroyed B-86 Titan 12929 | -4/Extension | Found Hvy. Reflective Plating 12960 | -4/Extension | Found Hvy. Reflective Plating 12978 | -4/Extension | Incoming investigation squad redirected 13335 | -4/Extension | Disrupted transfer network 13517 | -4/Extension | Discovered new exit (range 15) 13519 | -4/Extension | Discovered new exit (range 15) 13589 | -4/Extension | Entered Research 13589 | -3/Research | Accompanied by 1 ally (A7) 13589 | -3/Research | Evolved 2 slots: Propulsion x1, Utility x1 13850 | -3/Research | Spotted B-86 Titan 13928 | -3/Research | Lost 3 parts (3w) 13961 | -3/Research | Destroyed B-86 Titan 13975 | -3/Research | Lost 3 parts (1n2u) 13999 | -3/Research | Found Hvy. Reflective Plating 14552 | -3/Research | Lost 8 parts (2p3n3u) 14754 | -3/Research | Lost 5 parts (1p3n1u) 14754 | -3/Research | System corruption reached 10% 14982 | -3/Research | Lost 3 parts (1p1n1w) 15016 | -3/Research | Found Prototype Processor 15016 | -3/Research | Identified Exp. Melee Analysis Suite 15225 | -3/Research | Incoming investigation squad redirected 15327 | -3/Research | Discovered new exit (range 15) 15425 | -3/Research | Lost 10 parts (1p4n1u4w) 15433 | -3/Research | Entered another Research area 15433 | -2/Research | Evolved 2 slots: Propulsion x1, Utility x1 15769 | -2/Research | Spotted B-90 Cyclops 16051 | -2/Research | Build established: Mutant 16111 | -2/Research | Lost 4 parts (2p1n1w) 16136 | -2/Research | Spotted B-90 Cyclops 16205 | -2/Research | Discovered new exit (range 16) 16224 | -2/Research | Identified exit to Quarantine 16226 | -2/Research | Entered Quarantine 16394 | -2/Quarantine | Found Alien Artifact 16394 | -2/Quarantine | Identified Core Reset Matrix 16394 | -2/Quarantine | Used Core Reset Matrix 16398 | -2/Quarantine | Detected hypermatrix surge 16398 | -2/Quarantine | Sensed 12 artifacts in vicinity 16420 | -2/Quarantine | Found Subatomic Replicator 16520 | -2/Quarantine | Build established: Sprinter 16556 | -2/Quarantine | Found Dimensional Node Initializer 16558 | -2/Quarantine | Found Dimensional Node Initializer 16562 | -2/Quarantine | Incoming investigation squad redirected 16565 | -2/Quarantine | Found Transdimensional Reconstructor 16567 | -2/Quarantine | Found Hpw. Transdimensional Reconstructor 16569 | -2/Quarantine | Found Hpw. Transdimensional Reconstructor 16585 | -2/Quarantine | Found Core Cannon 16616 | -2/Quarantine | Initialized slip node 16619 | -2/Quarantine | Initialized slip node 16620 | -2/Quarantine | Warped through subspace to slip node 16643 | -2/Quarantine | Found Hpw. Transdimensional Reconstructor 16645 | -2/Quarantine | Found Dimensional Node Initializer 16668 | -2/Quarantine | Lost 8 parts (5n3u) 16682 | -2/Quarantine | Core integrity fell below 50% 16682 | -2/Quarantine | Used Subatomic Replicator to replicate Exp. Q-thruster 16689 | -2/Quarantine | Emitted hypermatrix ping 16694 | -2/Quarantine | Assembled emerged from beneath the floor 16694 | -2/Quarantine | Core integrity fell below 20% 16719 | -2/Quarantine | Lost 6 parts (3n2u1w) 16729 | -2/Quarantine | Warped through subspace to slip node 16830 | -2/Quarantine | Build established: Mutant 16971 | -2/Quarantine | Discovered new exit (range 9) 16976 | -2/Quarantine | Identified exit to Access 16976 | -2/Quarantine | Entered Access 16976 | -1/Access | Evolved 2 slots: Propulsion x1, Utility x1 17266 | -1/Access | Spotted B-99 Colossus 17300 | -1/Access | Garrison activated, responded to threat 17385 | -1/Access | System corruption reached 10% 17424 | -1/Access | Warped through subspace 17425 | -1/Access | Core integrity fell below 50% 17447 | -1/Access | Lost 17 parts (2p6n5u4w) 17504 | -1/Access | Spotted B-99 Colossus 17506 | -1/Access | Spotted B-99 Colossus 17524 | -1/Access | Emitted hypermatrix ping 17527 | -1/Access | Core integrity fell below 20% 17529 | -1/Access | Assembled emerged from beneath the floor 17547 | -1/Access | Destroyed by B-99 Colossus with Multirail Last Messages --------------- 17534_ as-85333 shuts down. 17534_ as-46801 knocked back. 17534_ Slug penetrates as-39481. 17534_ Slug penetrates as-46801. 17534_ Slug penetrates Wall. 17534_ Slug penetrates as-39481. 17534_ Slug penetrates R-10 Processor. 17534_ Slug penetrates Earth. 17534_ Slug penetrates Wall. 17537_ as-46801 destroyed. 17537_ Slug penetrates Reinforced Barrier. 17538_ as-39481 destroyed. 17538_ Slug penetrates Wall. 17539_ as-85333 system terminally corrupted. 17540_ as-33848 destroyed. 17540_ Slug penetrates Wall. 17541_ Slug penetrates Sealed Heavy Doors. 17544_ Penetrated by Slug. 17544_ Slug penetrates Sealed Heavy Doors. 17547_ Penetrated by Slug. Map ----- +----------------------------------------------------+ | ???????????????????????????????????????????# | | ???????????????????????????????????????????# ## | | ?????????????????????????????????########### #? | | ?????????????????????????????????# # #? | | ?????????????????????????????????# # #? | | ?????????????????????????????????# # #? | | ?????????????????????????????????# # #? | | ?????????????????????????????????# "" # #? | | ?????????????????????????????????# "" # #? | | ?????????????????????????????????# """" # #? | | ?????????????????????????????????# """" # #? | | ?????????????????????????????????# """" # #? | | ?????????????????????????????????# """" + #? | | ?????????????????????????????????# """" # ## | | ?????????????????????????????????# "" # | | ?????????????????????????????????# # ## | | ?????????????????????????????????# # ## | | ?????????????????????????????????# #! # | | ?????????????????????????????????# #%= # | | ?????????????????????????????????###########= # | | ???????????????????????????????????????????# ^# | | ??????????????????????????#########????????# + | | ??????????????????????????" #????????# # | | ??????????????????????????" # #??????# # | | ????????????????????????"""% "######### " | | ????????????????????????"@" % ## | | ????????????????????????"" % % % % "# | | ?????????????????????????"" % % %%%% ## | | ??????????????????????????" % %% % #? | | ??????????????????????????" BB% "#########/####? | | ??????????????????????????" B%% ; #????? ??? | | ??????????????????????????" % ###??? ? | | ??????????????????????????#########???# " ! | | ??????????????????????????????????????#""" | | ??????????????????????????????????????# """ | | ??????????????????????????????????????# " | | ??????????????????????????????????????# | | ??????????????????????????????????????# | | ??????????????????????????????????????# | | ??????????????????????????????????????# | | ??????????????????????????????????????# """Y""" | | ??????????????????????????????????????# """"""" | | ??????????????????????????????????????############ | | ?????????????????????????????????????????????????? | | ?????????????????????????????????????????????????? | | ?????????????????????????????????????????????????? | | ?????????????????????????????????????????????????? | | ?????????????????????????????????????????????????? | | ?????????????????????????????????????????????????? | | ?????????????????????????????????????????????????? | +----------------------------------------------------+ Best States ------------- Heat Dissipation 68 Energy Generation 49 Energy Capacity 850 Matter Stores 450 Matter Capacity 450 Sight Range 23 Robot Scan Range 16 Terrain Scan Range 16 Terrain Scan Density 210 ECM Strength 2 Cloak Strength 4 Power Amplification 40 Base Temperature (-) 200 Armor Coverage 1200 Resistance: KI 25 Resistance: TH 30 Resistance: EM 25 Utility Shielding 33 Weapon Shielding 66 Weapon Cycling 15 Melee Speed Boost 20 Evasion (%) 66 Targeting Accuracy 6 Melee Accuracy 8 Target Analysis 6 Core Analysis 10 Armor Integrity Analysis 35 Recoil Reduction 6 Stasis Canceling 1 Offensive Hacking 10 Defensive Hacking 10 Item Schematics ----------------- None Robot Schematics ------------------ None Fabricated ------------ Nothing Alien Tech Used ----------------- Core Reset Matrix Core Cannon Dimensional Node Initializer High-powered Transdimensional Reconstructor Subatomic Replicator Achievements -------------- Streaker Challenges ------------ None Game ------ Seed RelayLinearPlating Manual? 0 Play Time 07:34:09 Cumulative 252.0 hours Start 2021.05.05 @ 21:39:43 End 2021.05.14 @ 01:18:31 Sessions 5 Manual Loads 0 Difficulty Rogue Special Mode None Game No. 124 Rogue 124 Adventurer 0 Explorer 0 Win Type - Total 5 Types 4/0/1/0/0/0/0/0/0 Lore% 75 Gallery% 84 Achievement% 73 Wizard Run 0 Options --------- ASCII 0 Keyboard 1 Movement Numpad Keybinds 0 Fullscreen 2 Font 12/Terminus Map View 83x54 Tactical HUD 1 Map Filters NONE Filters NONE Steam 1 RUN: 0b963b83-3b04-41b7-b01a-5156790eb804